bitfinex-derivatives/quotes_ETHF0:USTF0_20250926
["timestamp","ask_amount","ask_price","bid_price","bid_amount"]
[1758896462052,0.9945,3952.9,3952.8,0.271]
[1758896462258,0.9945,3952.9,3952.5,1.0182]
[1758896462259,0.45507,3952.6,3952.2,3.21027604]
[1758896462458,1.44957,3952.6,3952.3,0.271]
[1758896462661,0.45503,3953.0,3952.5,0.45508]
[1758896462866,1.44953,3953.0,3952.7,1.0182]
[1758896463067,1.44954,3952.9,3952.7,1.0182]
[1758896463265,1.44955,3952.8,3952.6,0.271]
[1758896463464,0.9945,3952.7,3952.5,0.72608]
[1758896463765,0.9945,3953.1,3952.2,4.22847604]
[1758896463968,1.13753,3953.2,3952.3,0.271]
[1758896463969,0.4551,3952.4,3952.3,0.271]
[1758896464158,0.9945,3952.3,3952.2,0.00247604]
[1758896466462,3.4788,3952.8,3952.3,0.4551]
[1758896466658,1.92263567,3952.7,3952.2,0.00247604]
[1758896466858,1.37671,3952.3,3952.2,0.00247604]
[1758896467055,1.92275488,3952.3,3952.2,0.00247604]
[1758896467258,1.37671,3952.3,3952.2,0.00247604]
[1758896467669,0.45521,3951.5,3951.3,3.2078]
[1758896467860,0.9335,3951.4,3951.3,3.2078]
[1758896468368,0.45522,3951.3,3950.9,0.45526]
[1758896468664,0.45522,3951.3,3950.9,0.45772065]
[1758896468665,0.9335,3951.1,3950.9,0.45772065]
[1758896468861,0.93672458,3951.3,3951.1,0.45524]
[1758896469260,0.00322458,3951.3,3951.1,0.45524]
[1758896469471,0.9335,3951.2,3951.1,0.271]
[1758896469672,0.9335,3951.2,3950.9,0.27345065]
[1758896469870,0.9335,3951.2,3951.1,0.45523]
[1758896470163,0.10151596,3951.2,3950.9,0.00245065]
[1758896470370,0.9335,3951.0,3950.9,0.45772065]
[1758896470570,0.10151596,3951.0,3950.9,1.38092065]
[1758896470771,0.00322458,3951.3,3951.2,1.37843]
[1758896471076,0.00322458,3951.3,3950.9,0.00245065]
[1758896471077,0.10469637,3951.3,3950.9,0.00245065]
[1758896471371,0.9335,3951.1,3951.0,0.45526]
[1758896471769,0.45524,3951.2,3951.0,0.9232]
[1758896471965,0.00322458,3951.3,3951.1,0.45525]
[1758896472276,0.9335,3951.2,3951.1,0.45525]
[1758896472465,0.9335,3951.2,3951.0,0.9232]
[1758896472671,0.10142924,3951.1,3950.9,0.00245065]
[1758896472862,0.9335,3951.1,3950.9,0.00245065]
[1758896473272,0.9335,3951.1,3950.9,0.45771065]
[1758896473473,0.9335,3951.1,3950.9,1.38091065]
[1758896473674,0.93672458,3951.3,3951.2,0.45523]
[1758896473976,0.10461766,3951.3,3951.2,1.37843]
[1758896474174,0.00322458,3951.3,3951.2,4.58623]
[1758896474365,0.00322458,3951.3,3951.2,4.131]
[1758896474670,0.93672458,3951.3,3951.2,3.66303]
[1758896474872,1.39194458,3951.3,3951.2,3.66303]
[1758896475070,0.93672458,3951.3,3951.2,3.66303]
[1758896475261,0.9335,3951.2,3950.9,0.27345065]
[1758896475466,0.00322458,3951.3,3951.2,0.45523]
[1758896475467,0.93672458,3951.3,3951.2,0.45523]
[1758896475676,0.9335,3951.2,3950.9,0.72871065]
[1758896475878,0.9335,3951.0,3950.9,0.72872065]
[1758896476063,1.38876,3951.0,3950.9,0.00245065]
[1758896476270,1.77776,3951.0,3950.9,0.00245065]
[1758896477372,1.87905793,3951.0,3950.9,0.00245065]
[1758896477574,1.87905793,3951.0,3950.3,3.2078]
[1758896477575,0.45533,3950.4,3950.3,3.2078]
[1758896477777,0.45533,3950.4,3950.3,3.66314]
[1758896477972,1.38883,3950.4,3950.3,3.66314]
[1758896478168,0.9335,3950.4,3950.3,3.66314]
[1758896478369,1.38883,3950.4,3950.3,3.2078]
[1758896478572,0.9335,3950.4,3950.3,3.6661527]
[1758896479373,0.45529,3950.7,3950.3,3.2108127]
[1758896479575,0.45532,3950.5,3950.3,3.6661427]
[1758896479790,0.9335,3950.5,3950.4,0.45533]
[1758896480078,1.3225,3951.0,3950.9,0.45527]
[1758896480378,0.9335,3950.8,3950.7,0.45528]
[1758896480581,1.03469008,3950.8,3950.7,0.45528]
[1758896480872,1.38875,3951.1,3950.8,0.45527]
[1758896481073,1.03467624,3951.0,3950.9,0.45526]
[1758896481278,0.10117624,3951.0,3950.7,1.1932]
[1758896481573,0.9335,3950.9,3950.8,0.45528]
[1758896481772,0.389,3951.0,3950.5,0.7253]
[1758896481980,0.45529,3950.7,3950.5,0.4553]
[1758896482166,0.389,3951.0,3950.4,0.27]
[1758896482371,0.389,3951.0,3950.3,3.2108127]
[1758896482372,1.38883,3950.4,3950.3,0.0030127]
[1758896482572,1.03463922,3950.4,3950.3,0.0030127]
[1758896482775,1.48996922,3950.4,3950.3,0.0030127]
[1758896483873,0.45529,3950.7,3950.6,0.9232]
[1758896484084,0.45533,3950.4,3950.3,0.2730127]
[1758896484276,1.38883,3950.4,3950.3,0.0030127]
[1758896484485,4.69774954,3950.4,3950.3,0.0030127]
[1758896485677,4.69774954,3950.4,3950.3,1.3815527]
[1758896485678,4.24241954,3950.4,3950.3,1.3815527]
[1758896485978,4.59663,3950.4,3950.3,0.0030127]
[1758896486185,4.96776534,3950.4,3950.3,0.0030127]
[1758896487584,4.51243534,3950.4,3950.3,0.0030127]
[1758896487782,4.96776534,3950.4,3950.3,0.0030127]
[1758896488670,9.96776534,3950.4,3950.3,0.0030127]
[1758896488980,9.96776534,3950.4,3949.4,3.2078]
[1758896489184,9.96776534,3950.4,3948.9,1.13875]
[1758896489185,1.3225,3949.5,3948.9,3.2078]
[1758896489373,0.45553,3948.6,3948.5,3.2078]
[1758896489580,1.49016534,3948.6,3948.5,3.2078]
[1758896489776,1.03463534,3948.6,3948.5,3.2078]
[1758896489976,1.03463534,3948.6,3948.5,3.21062427]
[1758896490785,1.03463534,3948.6,3948.5,0.00282427]
[1758896491083,1.03463534,3948.6,3948.5,3.21062427]
[1758896491475,0.10113534,3948.6,3948.5,4.13382427]
[1758896491675,0.10113534,3948.6,3948.5,3.21062427]
[1758896491880,0.10285087,3948.6,3948.5,3.66616427]
[1758896492182,1.03635087,3948.6,3948.5,0.00282427]
[1758896492483,1.49188087,3948.6,3948.5,0.00282427]
[1758896492681,1.76188087,3948.6,3948.5,0.00282427]
[1758896492979,7.30631992,3948.6,3948.5,0.00282427]
[1758896493377,0.45571,3947.1,3947.0,0.9232]
[1758896493578,0.45576,3946.6,3946.5,3.2078]
[1758896493781,1.03634111,3946.6,3946.5,3.2078]
[1758896494175,0.10284111,3946.6,3946.5,4.131]
[1758896494381,0.93625692,3946.6,3946.5,3.21018531]
[1758896494582,0.45584,3946.0,3945.5,3.2078]
[1758896494777,0.10273608,3945.9,3945.2,0.27]
[1758896494984,0.10273608,3945.9,3945.8,4.131]
[1758896495182,0.00275692,3946.6,3945.8,4.58685]
[1758896495386,1.42512016,3946.5,3946.3,0.4558]
[1758896495582,0.10262016,3946.4,3946.3,1.38117848]
[1758896495786,0.00275692,3946.6,3946.5,1.37898]
[1758896495984,0.00275692,3946.6,3946.5,1.77128]
[1758896496291,0.0253,3947.5,3946.9,1.37893]
[1758896496476,0.9335,3947.3,3947.0,3.66351]
[1758896496681,1.03608312,3947.2,3947.0,3.66351]
[1758896496887,0.10258312,3947.1,3947.0,4.131]
[1758896497283,0.10521401,3947.1,3947.0,4.131]
[1758896497587,0.9219,3946.6,3946.5,3.2078]
[1758896497788,1.02448312,3946.6,3946.5,3.2078]
[1758896498386,0.10258312,3946.6,3946.5,4.1596]
[1758896498586,0.00263089,3947.1,3947.0,0.45572]
[1758896498788,0.00263089,3947.1,3947.0,4.61532]
[1758896498983,0.92453089,3947.1,3947.0,3.2078]
[1758896499191,0.3823,3947.0,3946.5,3.2078]
[1758896499390,1.02439462,3946.9,3946.6,0.9518]
[1758896499582,0.10249462,3946.8,3946.6,0.9518]
[1758896499793,0.55825462,3946.7,3946.5,3.2078]
[1758896499985,0.83808,3946.5,3946.3,0.00217848]
[1758896500185,1.02439462,3946.4,3946.3,0.00217848]
[1758896501086,0.10249462,3946.4,3946.3,0.00217848]
[1758896501287,1.02439462,3946.4,3946.3,0.00217848]
[1758896502988,0.10249462,3946.4,3946.3,0.95397848]
[1758896503195,0.45577,3946.6,3946.4,1.40758]
[1758896503392,0.10231172,3946.5,3946.4,1.40758]
[1758896503694,0.10231172,3946.5,3946.4,0.9518]
[1758896504992,0.9219,3946.8,3946.6,0.45576]
[1758896505188,0.9219,3946.8,3946.7,3.2078]
[1758896505385,0.10234663,3946.8,3946.7,3.2078]
[1758896505590,0.10234663,3946.8,3946.7,4.1596]
[1758896506293,1.02427498,3946.8,3946.7,3.2078]
[1758896506887,0.10237498,3946.8,3946.7,3.2078]
[1758896507188,1.02427498,3946.8,3946.7,3.2078]
[1758896508191,1.02427498,3946.8,3946.3,0.00217848]
[1758896508498,0.9219,3946.4,3946.3,0.00217848]
[1758896508797,1.02427498,3946.4,3946.3,0.00217848]
[1758896509298,0.10237498,3946.4,3946.3,5.95397848]
[1758896509593,0.9219,3946.4,3946.3,0.00217848]
[1758896509799,1.02427498,3946.4,3946.3,0.27217848]
[1758896510391,0.10237498,3946.4,3946.3,1.22397848]
[1758896510586,0.10248654,3946.4,3946.3,0.27217848]
[1758896510895,0.10248654,3946.4,3946.3,6.67977848]
[1758896511991,0.00263089,3947.1,3946.3,5.27217848]
[1758896512186,0.00263089,3947.1,3947.0,1.71112]
[1758896512492,0.00263089,3947.1,3947.0,1.98112]
[1758896512796,0.9219,3948.4,3948.2,1.40737]
[1758896512995,0.9219,3948.4,3948.2,1.67737]
[1758896513293,0.9219,3948.8,3948.6,0.45553]
[1758896513495,0.9219,3948.8,3948.6,0.72553]
[1758896513695,0.00210525,3948.8,3948.7,0.9518]
[1758896514694,3.2078,3950.0,3949.1,0.9518]
[1758896514885,1.3773,3949.8,3949.6,0.9518]
[1758896515084,1.3773,3949.8,3949.4,3.2078]
[1758896515085,0.4554,3949.8,3949.7,0.27]
[1758896515489,0.45541,3949.7,3949.5,0.27]
[1758896515793,0.9219,3949.6,3949.5,0.27200922]
[1758896517308,0.9219,3949.6,3949.5,0.00200922]
[1758896517593,1.46695779,3949.6,3949.5,0.00200922]
[1758896518699,0.54505779,3949.6,3949.5,0.95380922]
[1758896518893,0.9219,3949.6,3949.5,0.00200922]
[1758896519096,1.46711665,3949.6,3949.5,0.00200922]
[1758896519298,0.9219,3949.6,3949.5,0.00200922]
[1758896519498,0.00262547,3949.7,3949.5,1.40922922]
[1758896519695,0.9219,3949.6,3949.5,0.00200922]
[1758896520200,0.00262547,3949.7,3949.6,0.9518]
[1758896520396,0.9219,3949.6,3949.5,0.00200922]
[1758896520599,0.00262547,3949.7,3949.5,0.00200922]
[1758896520801,0.00262547,3949.7,3949.6,0.9518]
[1758896521296,0.9219,3949.6,3949.5,0.00200922]
[1758896521693,0.00262547,3949.7,3949.6,1.40722]
[1758896521897,0.92452547,3949.7,3949.6,0.27]
[1758896522199,0.92452547,3949.7,3949.5,0.00200922]
[1758896522200,1.37732,3949.6,3949.5,0.00200922]
[1758896522399,0.9219,3949.6,3949.5,0.00200922]
[1758896522798,1.37993547,3949.7,3949.5,0.95380922]
[1758896523093,0.9219,3949.6,3949.5,0.00200922]
[1758896523406,6.46644269,3949.6,3949.5,0.00200922]
[1758896523703,6.46644269,3949.6,3948.4,0.45555]
[1758896523704,0.9219,3948.9,3948.7,0.27]
[1758896523999,1.75974,3948.5,3948.4,3.2078]
[1758896524198,0.9219,3948.2,3948.1,0.27]
[1758896524401,0.3823,3948.5,3947.9,3.2078]
[1758896524595,0.45559,3948.1,3947.9,3.48063159]
[1758896524791,0.3823,3948.5,3947.9,3.48063159]
[1758896524992,0.10286958,3948.4,3948.3,4.61517]
[1758896525302,0.10286958,3948.4,3948.3,4.88517]
[1758896525601,0.9595,3948.2,3948.0,0.7256]
[1758896525792,4.72885,3949.0,3948.0,0.27]
[1758896525793,0.9595,3948.7,3948.0,0.27]
[1758896525998,0.55841322,3948.6,3948.3,1.43446]
[1758896526192,0.10288322,3948.5,3948.4,0.45555]
[1758896526400,0.10288322,3948.5,3948.4,0.9789]
[1758896526593,0.9595,3948.4,3948.3,0.27]
[1758896526799,1.06238322,3948.4,3948.3,0.27]
[1758896526999,0.45558,3948.2,3947.9,3.93624159]
[1758896527302,0.9595,3948.3,3948.1,0.45558]
[1758896527602,0.9753,3948.1,3947.9,3.48063159]
[1758896527802,0.9753,3948.1,3948.0,0.45559]
[1758896528200,0.4556,3948.0,3947.9,3.21063159]
[1758896528405,1.9260987,3948.0,3947.9,3.21063159]
[1758896528601,1.9260987,3948.0,3947.9,0.00283159]
[1758896528906,1.4704987,3948.0,3947.9,0.00283159]
[1758896529101,1.0781987,3948.0,3947.9,0.00283159]
[1758896529296,0.9753,3949.2,3948.6,0.9161]
[1758896529498,3.2078,3949.3,3949.2,1.37156]
[1758896529806,4.1831,3950.2,3949.6,1.37152]
[1758896530105,3.2078,3950.2,3949.6,4.84932]
[1758896530302,3.2078,3950.2,3949.6,4.1239]
[1758896530603,3.2078,3950.2,3949.6,9.3939]
[1758896530798,0.9753,3950.5,3949.6,9.3939]
[1758896531808,1.43062,3950.5,3949.6,9.3939]
[1758896532010,0.9753,3950.5,3949.6,9.3939]
[1758896532312,3.2331,3950.3,3949.5,0.45542]
[1758896532510,3.2331,3950.3,3949.6,0.27]
[1758896532700,0.45536,3950.1,3949.6,0.27]
[1758896533007,0.45538,3950.0,3949.6,0.27]
[1758896533306,0.97792547,3949.7,3949.6,0.27]
[1758896533502,0.45542,3949.6,3949.2,3.66326]
[1758896533702,0.3923,3949.5,3949.2,3.93326]
[1758896533904,0.84774,3949.5,3949.2,3.4778]
[1758896534104,0.9753,3949.3,3949.2,3.2078]
[1758896534805,0.45552,3948.8,3948.6,3.2078]
[1758896535008,0.9753,3948.7,3948.6,3.2078]
[1758896535601,5.9753,3948.7,3948.6,3.2078]
[1758896536006,0.9753,3948.6,3947.9,4.12673159]
[1758896536208,0.9753,3948.0,3947.9,3.21063159]
[1758896536404,1.3676,3948.0,3947.9,3.21063159]
[1758896537213,0.9753,3948.5,3948.4,0.45556]
[1758896537709,0.9753,3948.5,3948.1,0.72559]
[1758896537710,0.45555,3948.5,3948.1,0.72559]
[1758896537904,0.45555,3948.5,3948.2,0.45557]
[1758896538109,0.9753,3948.9,3948.1,0.27]
[1758896538410,0.5458541,3948.8,3948.4,0.45555]
[1758896538606,1.43087,3948.4,3948.1,0.27]
[1758896538907,0.45557,3948.3,3948.1,0.27]
[1758896539108,0.9753,3948.0,3947.9,3.21063159]
[1758896539311,1.3676,3948.0,3947.9,0.00283159]
[1758896540105,1.3676,3948.0,3945.6,1.78167906]
[1758896540410,1.3676,3948.0,3940.9,10.59017118]
[1758896540411,0.9343,3944.4,3942.9,3.2078]
[1758896540612,0.9343,3944.4,3942.0,0.3808]
[1758896540613,0.45621,3942.8,3942.0,0.3808]
[1758896540804,5.27467068,3942.1,3941.3,0.177]
[1758896541009,0.45631,3941.9,3941.3,0.177]
[1758896541315,0.45634,3941.6,3941.3,0.00291483]
[1758896541512,5.27467068,3941.5,3941.3,0.00291483]
[1758896541815,1.00243022,3941.4,3941.3,0.00291483]
[1758896542522,1.97773022,3941.4,3941.0,0.272]
[1758896542819,3.2078,3941.2,3941.0,1.1881]
[1758896543113,1.00243022,3941.1,3941.0,1.1881]
[1758896543625,1.00243022,3941.1,3941.0,1.19109465]
[1758896544318,0.87285488,3941.1,3941.0,1.19109465]
[1758896545411,3.2078,3941.6,3941.0,5.65579465]
[1758896545616,3.2078,3941.6,3941.0,0.65579465]
[1758896545810,3.2078,3941.6,3941.1,0.271]
[1758896546117,4.1831,3942.0,3941.2,0.8353]
[1758896546412,3.2078,3941.5,3941.3,0.271]
[1758896546719,1.43167,3941.4,3941.0,0.00299465]
[1758896546923,0.9753,3941.4,3941.1,0.271]
[1758896547218,3.2078,3941.5,3941.2,0.8353]
[1758896547604,0.45638,3941.3,3941.0,0.00299465]
[1758896547810,4.1831,3941.1,3941.0,0.27399465]
[1758896548116,4.1831,3941.1,3941.0,0.00299465]
[1758896549307,4.32451315,3941.1,3941.0,0.00299465]
[1758896549811,0.14141315,3941.1,3941.0,0.83829465]
[1758896550221,3.34921315,3941.1,3941.0,0.00299465]
[1758896550413,0.45645,3940.7,3940.1,0.8353]
[1758896550609,0.14141315,3940.6,3940.3,0.8353]
[1758896550815,0.45648,3940.4,3939.7,39.69263506]
[1758896551009,0.45648,3940.4,3939.5,6.86326366]
[1758896551010,0.4565,3940.2,3939.6,0.8353]
[1758896551320,3.2078,3939.8,3939.7,0.271]
[1758896551513,1.43186,3939.7,3939.6,0.00264343]
[1758896551712,1.11671315,3939.7,3939.6,0.00264343]
[1758896551917,0.14141315,3939.7,3939.6,0.83794343]
[1758896552311,1.11671315,3939.7,3939.6,0.00264343]
[1758896553419,1.11671315,3939.7,3938.5,0.8353]
[1758896553420,0.45667,3938.8,3938.5,0.058]
[1758896553721,0.9753,3938.6,3938.5,0.058]
[1758896553920,0.3923,3938.5,3937.9,0.02539457]
[1758896554124,3.34921315,3938.4,3937.9,0.02539457]
[1758896554420,1.11671315,3938.3,3938.0,0.8353]
[1758896554614,1.11671315,3938.3,3937.9,0.02851193]
[1758896554615,0.9753,3938.1,3937.9,0.02851193]
[1758896554843,0.14141315,3938.0,3937.9,0.02851193]
[1758896555021,1.11671315,3938.0,3937.9,0.02851193]
[1758896555324,6.50901315,3938.0,3937.9,0.02851193]
[1758896555509,1.50901315,3938.0,3937.9,0.02851193]
[1758896556312,0.14141315,3938.0,3937.9,0.02851193]
[1758896556710,0.14141315,3938.0,3937.9,0.30051193]
[1758896557117,1.11671315,3938.0,3937.9,0.02851193]
[1758896557424,1.88871659,3938.0,3937.9,0.02851193]
[1758896558120,2.32741659,3938.0,3937.9,0.02851193]
[1758896558526,0.91341659,3938.0,3937.9,6.16571193]
[1758896558711,0.91341659,3938.0,3937.9,9.64451193]
[1758896559019,0.77200344,3938.0,3937.9,9.64451193]
[1758896559221,0.77200344,3938.0,3937.9,4.64451193]
[1758896559423,0.77200344,3938.0,3937.9,3.23631193]
[1758896559611,0.77200344,3938.0,3937.9,4.64451193]
[1758896559817,0.77200344,3938.0,3937.9,3.50731193]
[1758896560016,0.77200344,3938.0,3937.9,3.23631193]
[1758896560216,0.91235339,3938.0,3937.9,3.50731193]
[1758896560517,1.96745339,3938.0,3937.9,3.50731193]
[1758896561119,0.91235339,3938.0,3937.9,0.02851193]
[1758896561619,1.96745339,3938.0,3937.9,0.29951193]
[1758896561818,0.91235339,3938.0,3937.9,4.64451193]
[1758896562519,0.91235339,3938.0,3937.9,3.50731193]
[1758896562725,0.91235339,3938.0,3937.9,4.64451193]
[1758896563420,1.96806682,3938.0,3937.9,0.29951193]
[1758896563616,0.91296682,3938.0,3937.9,1.43671193]
[1758896563819,0.91296682,3938.0,3937.9,0.29951193]
[1758896564426,1.96806682,3938.0,3937.9,0.29951193]
[1758896564922,1.96806682,3938.0,3937.9,0.02851193]
[1758896565124,0.91296682,3938.0,3937.9,0.29951193]
[1758896565618,0.00258708,3938.4,3938.0,0.68396]
[1758896565822,0.00258708,3938.4,3938.3,4.345]
[1758896566127,0.00258708,3938.4,3938.3,5.07272]
[1758896566518,7.08e-06,3938.4,3938.3,10.07272]
[1758896566823,3.2078,3939.2,3938.8,1.1372]
[1758896567030,4.2629,3939.2,3938.4,1.1372]
[1758896567224,0.4387,3939.0,3938.5,0.271]
[1758896567526,4.2629,3939.2,3939.1,0.45663]
[1758896567834,4.26547753,3939.2,3939.1,0.271]
[1758896568027,3.21037753,3939.2,3938.2,1.1372]
[1758896568328,1.0551,3938.8,3938.7,0.45668]
[1758896568524,2.82859713,3938.9,3938.2,1.1372]
[1758896568721,1.0551,3938.8,3938.7,0.72768]
[1758896568923,0.4387,3939.0,3938.7,0.271]
[1758896569124,1.0551,3938.9,3938.7,0.271]
[1758896569324,1.0551,3938.9,3938.8,0.271]
[1758896569725,1.0551,3938.9,3938.8,0.72766]
[1758896570026,1.0551,3938.9,3938.8,0.66874366]
[1758896570221,1.0551,3938.9,3938.8,0.271]
[1758896570424,1.0551,3938.9,3938.8,0.72766]
[1758896570618,1.0551,3938.9,3938.8,0.271]
[1758896570822,1.0551,3938.9,3938.8,0.72766]
[1758896571929,0.00257753,3939.2,3939.1,1.59383]
[1758896572129,1.0551,3939.1,3939.0,0.45664]
[1758896572330,1.0551,3938.9,3938.2,1.1372]
[1758896572531,1.0551,3938.9,3938.3,0.45672]
[1758896572831,1.4938,3938.5,3938.4,0.271]
[1758896573029,1.4938,3938.0,3937.9,0.02851193]
[1758896573428,1.4938,3938.0,3937.9,0.29951193]
[1758896574028,1.4938,3938.0,3937.9,0.02851193]
[1758896576330,1.0551,3938.0,3937.9,0.02851193]
[1758896576526,1.0551,3938.0,3937.9,0.29951193]
[1758896576924,1.4938,3938.0,3937.9,0.02851193]
[1758896577726,1.77031751,3938.0,3937.9,0.02851193]
[1758896578232,0.71521751,3938.0,3937.9,0.02851193]
[1758896578428,0.71521751,3938.0,3937.9,1.16571193]
[1758896578624,0.71521751,3938.0,3937.9,6.16571193]
[1758896579128,0.71521751,3938.0,3937.9,9.37351193]
[1758896579335,0.59655502,3938.0,3937.9,9.37351193]
[1758896579524,0.59655502,3938.0,3937.9,0.02851193]
[1758896579722,0.59655502,3938.0,3937.9,1.43671193]
[1758896579926,0.59655502,3938.0,3937.9,6.43671193]
[1758896580332,3.2078,3939.1,3939.0,0.45664]
[1758896580534,4.35621573,3939.1,3939.0,0.72764]
[1758896580728,1.14841573,3939.1,3939.0,0.72764]
[1758896580928,0.00257753,3939.2,3939.0,8.93544]
[1758896581127,3.2078,3940.3,3940.2,0.4565]
[1758896581436,3.2078,3940.3,3940.2,0.7275]
[1758896581730,1.0551,3940.2,3939.1,4.345]
[1758896581935,0.4387,3940.0,3939.7,0.45656]
[1758896582137,1.0551,3939.9,3939.8,0.271]
[1758896582637,1.0551,3939.4,3939.3,0.4566]
[1758896582832,1.0551,3939.4,3939.3,0.7276]
[1758896583027,1.0551,3939.4,3939.3,0.271]
[1758896583525,1.0551,3939.4,3938.6,2.27892]
[1758896583526,1.0551,3939.4,3938.6,1.1372]
[1758896583725,0.4387,3939.0,3938.4,0.271]
[1758896584129,0.4387,3939.5,3939.4,0.45659]
[1758896584731,1.0551,3939.4,3939.2,0.72761]
[1758896584928,1.4938,3939.5,3939.4,0.45659]
[1758896585123,0.00309513,3940.0,3939.3,4.3493]
[1758896585331,0.00309513,3940.0,3939.9,0.45654]
[1758896585628,1.05359513,3940.0,3939.4,1.1372]
[1758896585835,4.2583,3939.9,3939.5,0.271]
[1758896586033,4.2583,3939.9,3938.0,6.30648366]
[1758896586034,0.4487,3939.0,3938.7,0.45667]
[1758896586336,3.6565,3939.0,3938.6,0.271]
[1758896586531,1.50715,3938.9,3938.6,0.271]
[1758896586727,1.0505,3938.9,3938.8,0.45666]
[1758896586923,1.0505,3939.3,3938.6,0.271]
[1758896587123,3.2078,3939.4,3938.4,3.2078]
[1758896587328,1.0505,3938.7,3938.5,0.7277]
[1758896587632,1.0989,3938.7,3938.5,0.72769]
[1758896587830,1.0989,3938.7,3938.6,0.45669]
[1758896588236,3.2078,3938.8,3938.6,1.57639]
[1758896588832,4.3067,3939.4,3939.3,0.45661]
[1758896589033,1.0989,3939.4,3939.3,0.72761]
[1758896589231,3.2078,3939.9,3939.5,1.57629]
[1758896589431,1.1242,3939.6,3939.5,0.45659]
[1758896589627,1.1242,3939.6,3939.5,0.72759]
[1758896589833,1.1242,3939.6,3938.7,1.1417]
[1758896589834,1.0989,3939.4,3938.7,1.1417]
[1758896590132,4.3067,3939.5,3939.3,0.45661]
[1758896590337,4.3067,3939.5,3939.4,0.271]
[1758896590532,4.7258,3939.5,3939.4,0.271]
[1758896590733,4.3067,3939.5,3939.4,0.271]
[1758896590935,0.0253,3939.6,3939.5,0.45659]
[1758896591238,1.1242,3939.6,3939.5,0.45659]
[1758896591443,1.1242,3939.6,3939.1,2.26127]
[1758896591444,1.0989,3939.5,3938.6,1.1197]
[1758896591734,4.332,3939.6,3939.5,0.45659]
[1758896591942,3.2331,3939.6,3939.5,0.72759]
[1758896592341,3.77026583,3939.6,3939.5,0.45659]
[1758896592528,1.0989,3939.4,3938.8,1.14168]
[1758896592729,1.63606583,3939.3,3939.2,0.45661]
[1758896592936,1.63606583,3939.3,3939.0,0.45663]
[1758896593136,1.0989,3939.1,3938.9,0.45665]
[1758896593442,3.74504616,3939.2,3938.7,0.45668]
[1758896593443,1.0989,3938.9,3938.7,0.45668]
[1758896593734,1.518,3939.0,3938.9,0.45666]
[1758896593939,2.05531428,3939.0,3938.9,0.45666]
[1758896594138,1.0989,3938.9,3938.8,0.72766]
[1758896594529,4.3067,3939.2,3939.1,0.45663]
[1758896594731,0.53734297,3939.2,3939.1,1.57633]
[1758896595033,0.53734297,3939.2,3938.8,0.271]
[1758896595034,3.2331,3939.6,3939.0,1.1416]
[1758896595240,3.2331,3939.6,3938.8,0.271]
[1758896595241,2.05526589,3939.5,3939.4,0.4566]
[1758896595435,1.63616589,3939.5,3939.4,0.7276]
[1758896595738,3.2331,3939.6,3939.5,0.45659]
[1758896595934,3.2331,3939.6,3939.5,1.57629]
[1758896596139,3.2331,3939.6,3939.5,6.57629]
[1758896596439,4.332,3939.6,3939.5,0.45659]
[1758896596836,4.332,3939.6,3939.5,0.271]
[1758896597343,4.332,3939.6,3939.5,0.45659]
[1758896597738,4.332,3939.6,3939.5,0.72759]
[1758896598145,4.332,3939.6,3939.5,0.271]
[1758896598648,1.0989,3939.4,3938.2,3.2078]
[1758896598939,3.2078,3938.9,3938.3,0.271]
[1758896599137,0.4191,3938.5,3938.4,0.72771]
[1758896599332,4.7258,3938.5,3938.4,0.72771]
[1758896599536,4.3067,3938.9,3938.8,0.45667]
[1758896599742,4.3067,3939.3,3939.2,0.45662]
[1758896600044,1.0989,3939.3,3939.2,0.72762]
[1758896600340,0.0253,3939.6,3939.2,0.271]
[1758896600538,1.1242,3939.6,3939.5,0.45659]
[1758896600944,1.518,3939.5,3939.2,0.72761]
[1758896601253,1.518,3939.5,3939.2,1.17593315]
[1758896601254,3.6269,3939.5,3939.2,1.17593315]
[1758896601432,3.6269,3939.5,3939.2,1.63255315]
[1758896601736,1.0989,3939.4,3939.3,0.72761]
[1758896601944,4.3067,3939.5,3939.4,0.4566]
[1758896602244,4.3067,3939.5,3939.4,1.36153315]
[1758896602545,3.2078,3939.5,3939.4,2.48123315]
[1758896602845,3.2078,3939.5,3939.4,1.5763]
[1758896603049,0.0253,3939.6,3939.5,0.45659]
[1758896603241,0.00309513,3940.0,3939.9,1.1197]
[1758896603439,4.3067,3940.8,3940.7,0.45645]
[1758896603634,4.3067,3940.8,3940.7,0.72745]
[1758896603843,0.4191,3941.5,3940.7,0.72745]
[1758896603844,1.0989,3941.4,3941.3,0.45638]
[1758896604140,4.3067,3941.6,3941.5,0.45635]
[1758896604341,1.518,3941.5,3941.3,0.271]
[1758896604540,1.518,3941.5,3941.3,0.27288379]
[1758896604845,1.55527,3941.4,3941.3,0.00188379]
[1758896605045,1.55527,3941.4,3941.2,0.271]
[1758896605340,1.97442,3941.0,3940.4,0.90296218]
[1758896605644,3.6269,3940.5,3940.3,0.45648]
[1758896605844,0.4191,3941.0,3940.5,0.45646]
[1758896605845,3.6269,3941.0,3940.5,0.45646]
[1758896606047,1.0989,3940.9,3940.6,0.90376744]
[1758896606342,4.3067,3940.7,3940.6,0.90376744]
[1758896606544,4.3067,3940.7,3940.6,1.17476744]
[1758896607140,4.3067,3940.7,3940.6,0.271]
[1758896607840,3.2078,3940.7,3940.5,1.36287439]
[1758896608140,3.2078,3940.7,3940.6,1.17376744]
[1758896608344,4.3067,3940.7,3940.6,1.17376744]
[1758896609139,1.0989,3941.0,3940.9,0.45642]
[1758896609341,1.518,3941.0,3940.9,1.36047089]
[1758896609648,1.0989,3941.0,3940.9,1.36047089]
[1758896610349,3.2078,3941.1,3940.9,1.36047089]
[1758896610545,0.0253,3941.4,3941.3,1.57608]
[1758896610845,0.0253,3941.4,3941.3,13.22952883]
[1758896611050,3.2078,3942.0,3941.9,1.57601]
[1758896611248,1.0989,3942.4,3942.3,0.45626]
[1758896611543,0.4191,3942.5,3942.3,0.27]
[1758896611743,1.0989,3942.4,3942.3,0.72626]